Cogmind - Beta 16 @@@ ROGUE MODE // 2026.01.27 @ 09:52:32 Player: quak Result: Self-destructed Performance ------------- Evolutions (2) 1000 Regions Visited (8) 1600 Robots Destroyed (48) 240 Value Destroyed (1142) 1142 Prototype IDs (24) 480 Alien Tech Used (0) 0 Bonus (300) 300 TOTAL SCORE: 4762 Bonus ------- Aligned with FarCom 300 Cogmind --------- Core Integrity 118/550 Matter 280/300 Energy 70/100 System Corruption 2% Temperature Cool (0) Movement Flying (40) Location -8/Storage Parts ------- > --- POWER (1) -------- (None) > --- PROPULSION (3) --- Faulty Improved Flight Unit Improved Flight Unit > --- UTILITY (5) ------ Signal Interpreter > --- WEAPON (2) ------- (None) > --- INVENTORY (5) ---- Faulty Improved Flight Unit Faulty Improved Flight Unit Hacking Suite Peak State ------------ > --- POWER ------------ Light Nuclear Core > --- PROPULSION ------- Light Treads Light Treads > --- UTILITY ---------- Large Storage Unit Seismic Detector Seismic Detector Light Armor Plating > --- WEAPON ----------- Heavy Assault Rifle Heavy Assault Rifle > --- INVENTORY -------- Improved Ion Engine Light Treads Light Treads Light Treads Improved Flight Unit Improved Flight Unit Improved Flight Unit Signal Interpreter Hacking Suite Hacking Suite Shotgun Improved Assault Rifle Rocket Launcher Rocket Launcher [Rating: 16] Favorites ----------- Power Improved Ion Engine Engine Improved Ion Engine Power Core Light Nuclear Core Propulsion Light Treads Treads Light Treads Leg Aluminum Leg Flight Unit Improved Flight Unit Utility Seismic Detector Device Seismic Detector Storage Large Storage Unit Processor Signal Interpreter Protection Light Armor Plating Weapon Heavy Assault Rifle Energy Gun Small Laser Ballistic Gun Heavy Assault Rifle Build | -11 -10 -10 -9 -9 -9 -8 -8 -8 ------- Run | Yrd Mat Min Mat Min Exi Min Mat Sto Slots Evolved 4 | . . . 2 . . . 2 . Power . | . . . . . . . . . Propulsion 1 | . . . . . . . 1 . Utility 3 | . . . 2 . . . 1 . Weapon . | . . . . . . . . . Parts Attached 35 | 8 6 3 9 . 1 . 6 2 Power 5 | 1 1 1 1 . . . 1 . Engine 4 | 1 1 . 1 . . . 1 . Core 1 | . . 1 . . . . . . Reactor . | . . . . . . . . . Propulsion 16 | 2 3 2 4 . . . 3 2 Treads 7 | . . . 4 . . . 3 . Leg 7 | 2 3 2 . . . . . . Wheel . | . . . . . . . . . Hover . | . . . . . . . . . Flight 2 | . . . . . . . . 2 Utility 8 | 3 1 . 2 . 1 . 1 . Device 2 | 2 . . . . . . . . Storage 4 | 1 1 . 1 . . . 1 . Processor 1 | . . . . . 1 . . . Hackware . | . . . . . . . . . Protection 1 | . . . 1 . . . . . Artifact . | . . . . . . . . . Weapon 6 | 2 1 . 2 . . . 1 . Energy Gun 2 | 1 1 . . . . . . . Energy Cannon . | . . . . . . . . . Ballistic Gun 4 | 1 . . 2 . . . 1 . Ballistic Cannon . | . . . . . . . . . Launcher . | . . . . . . . . . Special Weapon . | . . . . . . . . . Impact Weapon . | . . . . . . . . . Slashing Weapon . | . . . . . . . . . Piercing Weapon . | . . . . . . . . . Special Melee Weapon . | . . . . . . . . . Unidentified Prototypes 1 | . . . . . . . . 1 Parts Lost 12 | . 1 . 1 . . . 10 . Power 3 | . 1 . 1 . . . 1 . Propulsion 4 | . . . . . . . 4 . Utility 2 | . . . . . . . 2 . Weapon 3 | . . . . . . . 3 . Highest Loss Streak 5 | . 1 . 1 . . . 5 . To Critical Strikes . | . . . . . . . . . Average Backups 11 | 3 8 10 13 15 14 15 10 4 Power . | . 1 . . 1 1 1 . . Propulsion 4 | 1 3 3 5 7 7 7 5 3 Utility 3 | . 3 5 4 3 3 4 2 1 Weapon 2 | . . . 3 4 3 3 2 . Tool/Special . | . . . . . . . . . Unused Backups 13 | . 1 1 2 . 2 . 4 3 Power 1 | . . 1 . . . . . . Propulsion 2 | . . . . . . . . 2 Utility 5 | . . . 1 . 1 . 2 1 Weapon 5 | . 1 . 1 . 1 . 2 . Tool/Special . | . . . . . . . . . Average Slot Usage (%) 89 | . 99 100 85 88 89 100 74 18 Engine 9 | . 13 12 2 11 11 11 7 . Core 2 | . . 1 8 . . . . . Treads 14 | . . . 20 22 22 22 23 . Leg 9 | . 28 28 1 . . . . . Device 11 | . 14 14 12 11 11 11 5 . Storage 11 | . 14 14 11 11 11 11 7 . Processor 1 | . . . . . 1 11 9 9 Protection 5 | . . . 6 11 11 11 5 . Energy Gun 5 | . 14 14 3 . . . . . Ballistic Gun 17 | . 13 14 18 22 22 22 15 . Peak Build Rating 16 | 7 8 10 16 14 16 16 16 7 Average Rating 11 | 6 7 8 13 14 14 16 13 6 On Entrance 9 | . 7 8 10 14 14 16 16 2 Avg Prop Armor Cover (%) . | . . . . . . . . . Naked Turns . | . . . . . . . . . Heaviest Build 57 | 15 20 19 37 37 37 37 57 . Greatest Support 60 | 20 20 20 40 40 40 40 60 . Greatest Overweight (x) 3 | 3 . . . . . . 1 . Average Overweight (x) . | . . . . . . . . . Largest Inventory Capacity 20 | 8 10 10 15 15 15 15 20 5 Average Capacity 13 | 7 9 10 14 15 15 15 18 5 Most Carried 15 | 5 10 10 15 15 15 15 14 4 Average Carried 11 | 3 8 9 13 15 14 15 10 3 Final Capacity 15 | 8 10 10 15 15 15 15 5 5 Final Carried 15 | 5 10 10 15 15 15 15 5 3 Class Distribution -------------------- 74% | Scavenger-Mutant 25% | Mutant Dominant Class ---------------- Scavenger-Mutant | -10/Materials Scavenger-Mutant | -10/Mines Scavenger-Mutant | -9/Materials Scavenger-Mutant | -9/Mines Scavenger-Mutant | -9/Exiles Scavenger-Mutant | -8/Mines Scavenger-Mutant | -8/Materials Scavenger-Mutant | -8/Storage Resources | -11 -10 -10 -9 -9 -9 -8 -8 -8 ----------- Run | Yrd Mat Min Mat Min Exi Min Mat Sto Matter Collected 1175 | 334 201 31 355 . . . 254 . Remotely . | . . . . . . . . . Salvage Created 1752 | 112 534 96 698 . . . 312 . Parts 116 | 8 36 6 49 3 . . 14 . Haulers Intercepted 6 | . 2 . 4 . . . . . Recyclers Shooed 1 | . . . . 1 . . . . Parts Field Recycled . | . . . . . . . . . Retrieved Matter . | . . . . . . . . . Parts Self-Destructed . | . . . . . . . . . Prevented . | . . . . . . . . . Parts Restored . | . . . . . . . . . Kills | -11 -10 -10 -9 -9 -9 -8 -8 -8 ------- Run | Yrd Mat Min Mat Min Exi Min Mat Sto Combat Hostiles Destroyed 30 | . 11 2 11 . . . 6 . Guns 26 | . 7 2 11 . . . 6 . AOE 4 | . 4 . . . . . . . Classes Destroyed 9 | 2 5 . 2 . . . . . Worker 3 | . 1 . 2 . . . . . Tunneler 4 | 3 . . . 1 . . . . Hauler 6 | . 2 . 4 . . . . . Recycler 2 | 1 . . 1 . . . . . Operator 2 | . 2 . . . . . . . Watcher 1 | . . . 1 . . . . . Swarmer 7 | . 3 . 4 . . . . . Grunt 19 | . 8 2 3 . . . 6 . Sentry 4 | . . . 4 . . . . . Best Kill Streak 4 | 2 3 2 4 1 . . 3 . Combat Bots Only 3 | . 3 2 2 . . . 3 . Max Kills in Single Turn 3 | 1 3 1 2 1 . . 1 . Gunslinging . | . . . . . . . . . Exploded 3 | . 3 . . . . . . . Melee . | . . . . . . . . . Uniques/NPCs Destroyed . | . . . . . . . . . Combat | -11 -10 -10 -9 -9 -9 -8 -8 -8 -------- Run | Yrd Mat Min Mat Min Exi Min Mat Sto Hostile Shots Fired 247 | . 41 18 42 . . . 146 . Missed 73 | . 12 8 8 . . . 45 . Hits 174 | . 29 10 34 . . . 101 . Projectile 174 | . 29 10 34 . . . 101 . Critical Strikes 6 | . 1 . 1 . . . 4 . Damage Taken 2395 | . 365 149 470 . . . 1411 . Core 577 | . 57 29 59 . . . 432 . Absorbed by Shields . | . . . . . . . . . Regen/Repaired (Parts) 129 | . 86 . . . . . 43 . Core Remaining (%) 83 | 100 . 65 . . . 85 . . Volleys Fired 154 | 23 45 7 45 . . . 34 . Largest 2 | 1 2 2 2 . . . 2 . Hottest 60 | 20 60 60 60 . . . 46 . Shots Fired 284 | 23 89 14 90 . . . 68 . Gun 284 | 23 89 14 90 . . . 68 . Cannon . | . . . . . . . . . Launcher . | . . . . . . . . . Special . | . . . . . . . . . Kinetic 215 | 23 45 7 72 . . . 68 . Thermal 50 | . 25 7 18 . . . . . Explosive . | . . . . . . . . . Electromagnetic 19 | . 19 . . . . . . . Robot Hit Streak 14 | 3 12 5 12 . . . 14 . Robot Miss Streak 4 | 2 4 1 3 . . . 2 . Penetration Max . | . . . . . . . . . Secondary Targets 3 | . . 1 . . . . 2 . Max Gunslinging Chain 1 | . . 1 . . . . 1 . Shots Hit Robots 201 | 14 60 11 64 . . . 52 . Core Hits 85 | 4 29 5 29 . . . 18 . Critical Kills . | . . . . . . . . . Critical Parts Destroyed 1 | . . . . . . . 1 . Critical Strikes 1 | . . . . . . . 1 . Destroy 1 | . . . . . . . 1 . Melee Attacks . | . . . . . . . . . Impact . | . . . . . . . . . Slashing . | . . . . . . . . . Piercing . | . . . . . . . . . Sneak Attacks . | . . . . . . . . . Combat Hostiles . | . . . . . . . . . Follow-up Attacks . | . . . . . . . . . Damage Inflicted 3045 | 181 919 127 945 12 . . 861 . Guns 2772 | 181 723 127 934 . . . 807 . Cannons . | . . . . . . . . . Explosions 173 | . 173 . . . . . . . Melee . | . . . . . . . . . Ramming 100 | . 23 . 11 12 . . 54 . Kinetic 2248 | 181 404 62 794 . . . 807 . Thermal 556 | . 351 65 140 . . . . . Explosive . | . . . . . . . . . Electromagnetic 141 | . 141 . . . . . . . Impact . | . . . . . . . . . Slashing . | . . . . . . . . . Piercing . | . . . . . . . . . Highest Corruption 2 | . . . . . . . 2 2 Average Corruption 2 | . . . . . . . 2 2 Corruption Purged . | . . . . . . . . . Corruption Blocked . | . . . . . . . . . Overload Shots . | . . . . . . . . . Overflow Damage . | . . . . . . . . . Projectiles . | . . . . . . . . . Explosions . | . . . . . . . . . Melee . | . . . . . . . . . Knockbacks 1 | . . . . . . . 1 . Impact 1 | . . . . . . . 1 . Kinetic . | . . . . . . . . . Secondary . | . . . . . . . . . Self-Inflicted Damage 69 | . 43 . . . . . 26 . Shots 2 | . 2 . . . . . . . Rammed 14 | . . . 4 2 . . 8 . Targets Rammed 20 | . 4 . 5 3 . . 8 . Kicked 4 | . 4 . . . . . . . Crushed 2 | . . . 1 1 . . . . Highest Temperature 45 | . 45 39 23 . . . 28 . Average Temperature 15 | . 19 28 8 . . . 9 . Received Heat Transfer 1131 | . 168 81 162 . . . 720 . Siege Activations . | . . . . . . . . . Martial Activations . | . . . . . . . . . Shielding Activations . | . . . . . . . . . Robots Disrupted . | . . . . . . . . . Combat Hostiles . | . . . . . . . . . Robots Corrupted . | . . . . . . . . . Combat Hostiles . | . . . . . . . . . Parts Fried . | . . . . . . . . . Impact Corruptions . | . . . . . . . . . Robots Melted . | . . . . . . . . . Combat Hostiles . | . . . . . . . . . Parts Melted . | . . . . . . . . . Heat Transferred 1075 | . 600 150 325 . . . . . Parts Sabotaged . | . . . . . . . . . Parts Stolen . | . . . . . . . . . Parts Stripped . | . . . . . . . . . Power Chain Reactions 2 | . 2 . . . . . . . Alert | -11 -10 -10 -9 -9 -9 -8 -8 -8 ------- Run | Yrd Mat Min Mat Min Exi Min Mat Sto Maximum Alert Level . | . . . . . . . . . Low Security (%) 100 | 100 100 100 100 100 . 100 100 100 Level 1 . | . . . . . . . . . Level 2 . | . . . . . . . . . Level 3 . | . . . . . . . . . Level 4 . | . . . . . . . . . Level 5 . | . . . . . . . . . High Security . | . . . . . . . . . Max Security . | . . . . . . . . . Peak Influence 142 | 10 95 40 142 39 . . 67 27 Initial 39 | . . 2 11 39 . . . 27 Average 28 | 1 37 8 48 5 . . 17 27 Influence Increases 1035 | 20 344 50 386 5 . . 230 . Destroy 0b10 Robot/C 600 | . 220 40 220 . . . 120 . Destroy 0b10 Robot/NC 90 | 20 25 . 40 5 . . . . Destroy Leader 164 | . 54 10 80 . . . 20 . Successful Hack 28 | . 16 . 12 . . . . . Disable Machine 15 | . . . . . . . 15 . Destroy Structure 18 | . 14 . 4 . . . . . Lose Combat Pursuer 120 | . 15 . 30 . . . 75 . Influence Decreases 1008 | 20 337 27 314 107 . . 163 40 Entered New Map 127 | . . 5 19 63 . . . 40 Time Decay 831 | 20 327 22 285 44 . . 133 . Lost Part 50 | . 10 . 10 . . . 30 . Squads Dispatched 9 | . 3 . 2 . . . 4 . Investigation 5 | . 1 . 1 . . . 3 . Extermination . | . . . . . . . . . Reinforcement 4 | . 2 . 1 . . . 1 . Assault . | . . . . . . . . . Garrison . | . . . . . . . . . Intercept . | . . . . . . . . . Searches Triggered . | . . . . . . . . . Construction Impeded 1 | . . . . . . . 1 . Haulers Reinforced . | . . . . . . . . . Active Scanning Responses . | . . . . . . . . . Cargo Convoy Interrupts . | . . . . . . . . . Stealth | -11 -10 -10 -9 -9 -9 -8 -8 -8 --------- Run | Yrd Mat Min Mat Min Exi Min Mat Sto Distress Signals 11 | . 1 . 6 . . . 4 . Communications Jammed . | . . . . . . . . . Distress Signals . | . . . . . . . . . Times Spotted 79 | . 23 4 26 . . . 26 . Peak Tracking Total 15 | . 4 2 5 . . . 15 . Tactical Retreats 4 | . 1 . 2 . . . 1 . Traps | -11 -10 -10 -9 -9 -9 -8 -8 -8 ------- Run | Yrd Mat Min Mat Min Exi Min Mat Sto Traps Triggered 1 | . . . . . . . 1 . Indirectly . | . . . . . . . . . Trap Hack Attempts . | . . . . . . . . . Triggered . | . . . . . . . . . Disarmed . | . . . . . . . . . Reprogrammed . | . . . . . . . . . Reused . | . . . . . . . . . Traps Extracted . | . . . . . . . . . Installed . | . . . . . . . . . Triggered . | . . . . . . . . . Machines | -11 -10 -10 -9 -9 -9 -8 -8 -8 ---------- Run | Yrd Mat Min Mat Min Exi Min Mat Sto Machines Disabled 1 | . . . . . . . 1 . Max in Single Turn 1 | . . . . . . . 1 . Machines Repaired . | . . . . . . . . . Machines Dismantled . | . . . . . . . . . Machines Sabotaged . | . . . . . . . . . Overloaded Fab Kills . | . . . . . . . . . Hacking | -11 -10 -10 -9 -9 -9 -8 -8 -8 --------- Run | Yrd Mat Min Mat Min Exi Min Mat Sto Machines Accessed 12 | . 6 . 3 . 1 . 2 . Terminals 7 | . 4 . 2 . . . 1 . Fabricators . | . . . . . . . . . Repair Stations 2 | . 1 . . . . . 1 . Recycling Units 1 | . 1 . . . . . . . Scanalyzers 1 | . . . 1 . . . . . Garrison Access . | . . . . . . . . . Total Hacks 34 | . 18 . 8 . 1 . 7 . Successful 18 | . 10 . 4 . 1 . 3 . Failed 16 | . 8 . 4 . . . 4 . Catastrophic 4 | . 2 . 1 . . . 1 . Database Lockouts . | . . . . . . . . . Manual 19 | . 11 . 5 . 1 . 2 . Terminals 20 | . 13 . 5 . . . 2 . Fabricators . | . . . . . . . . . Repair Stations 7 | . 2 . . . . . 5 . Recycling Units 3 | . 3 . . . . . . . Scanalyzers 3 | . . . 3 . . . . . Garrison Access . | . . . . . . . . . Terminal Hacks 5 | . 2 . 2 . 1 . . . Robot Analysis 1 | . 1 . . . . . . . Branch Access Points 1 | . . . 1 . . . . . Hauler Manifests 2 | . 1 . 1 . . . . . Proto ID Catalog 1 | . . . . . 1 . . . Fabricator Hacks . | . . . . . . . . . Repair Station Hacks 5 | . 2 . . . . . 3 . Scan Component 3 | . 1 . . . . . 2 . Repair 2 | . 1 . . . . . 1 . Recycling Unit Hacks 3 | . 3 . . . . . . . Report Inventory 1 | . 1 . . . . . . . Retrieve Matter 2 | . 2 . . . . . . . Scanalyzer 2 | . . . 2 . . . . . Insert Component 1 | . . . 1 . . . . . Analyze 1 | . . . 1 . . . . . Garrison Access Hacks . | . . . . . . . . . Unauthorized Hacks 3 | . 3 . . . . . . . Terminals 3 | . 3 . . . . . . . Botnet 3 | . 3 . . . . . . . Fabricators . | . . . . . . . . . Repair Stations . | . . . . . . . . . Recycling Units . | . . . . . . . . . Scanalyzers . | . . . . . . . . . Garrison Access . | . . . . . . . . . Data Cores Recovered . | . . . . . . . . . Used . | . . . . . . . . . Hacking Detections 8 | . 5 . 1 . . . 2 . Full Trace Events 4 | . 1 . 1 . . . 2 . Feedback Events . | . . . . . . . . . Feedback Blocked . | . . . . . . . . . Robot Schematics Acquired . | . . . . . . . . . Robots Built . | . . . . . . . . . Authchips . | . . . . . . . . . Time . | . . . . . . . . . Total Robot Build Rating . | . . . . . . . . . Part Schematics Acquired 1 | . . . 1 . . . . . Parts Built . | . . . . . . . . . Authchips . | . . . . . . . . . Time . | . . . . . . . . . Total Part Build Rating . | . . . . . . . . . Part Studies Acquired . | . . . . . . . . . Parts Repaired 2 | . 1 . . . . . 1 . Time 70 | . 26 . . . . . 44 . Parts Recycled . | . . . . . . . . . Recycled Matter . | . . . . . . . . . Retrieved Matter . | . . . . . . . . . Retrieved Components . | . . . . . . . . . Parts Scanalyzed 1 | . . . 1 . . . . . Part Schematics Acquired 1 | . . . 1 . . . . . Parts Damaged . | . . . . . . . . . Bothacking | -11 -10 -10 -9 -9 -9 -8 -8 -8 ------------ Run | Yrd Mat Min Mat Min Exi Min Mat Sto Used RIF Installer . | . . . . . . . . . Robots Hacked . | . . . . . . . . . Non-combat . | . . . . . . . . . Combat . | . . . . . . . . . Robot Hacks Applied . | . . . . . . . . . Relay Couplers Released . | . . . . . . . . . Fabnet Peak Effective % . | . . . . . . . . . Robots Rewired . | . . . . . . . . . Allies Hacked . | . . . . . . . . . Hacks Repelled . | . . . . . . . . . Allies | -11 -10 -10 -9 -9 -9 -8 -8 -8 -------- Run | Yrd Mat Min Mat Min Exi Min Mat Sto Total Allies 1 | . . . . 1 . . . . Largest Group 1 | . . . . 1 1 . . . Highest-Rated Group 31 | . . . . 31 31 . . . Highest-Rated Ally 31 | . . . . 31 31 . . . Total Orders . | . . . . . . . . . Ally Attacks . | . . . . . . . . . Total Damage . | . . . . . . . . . Kills . | . . . . . . . . . Allies Corrupted . | . . . . . . . . . Allies Melted . | . . . . . . . . . Intel | -11 -10 -10 -9 -9 -9 -8 -8 -8 ------- Run | Yrd Mat Min Mat Min Exi Min Mat Sto Active Infowar (turns) 3016 | 106 877 153 775 420 380 36 269 . Seismic 3016 | 106 877 153 775 420 380 36 269 . Robot Analysis Total 1 | . 1 . . . . . . . Derelict Logs Recovered 1 | . . . . 1 . . . . Drone Launches . | . . . . . . . . . Drone Recoveries . | . . . . . . . . . Exploration | -11 -10 -10 -9 -9 -9 -8 -8 -8 ------------- Run | Yrd Mat Min Mat Min Exi Min Mat Sto Turns Passed 3241 | 174 877 153 775 420 380 36 424 2 Spaces Moved 1754 | 89 530 100 322 260 235 23 195 . Core 76 | 8 . . . . . . 68 . Treads 953 | . . . 308 260 235 23 127 . Legs 725 | 81 530 100 14 . . . . . Wheels . | . . . . . . . . . Hover . | . . . . . . . . . Flight . | . . . . . . . . . Fastest Speed 50 | 50 120 120 120 160 160 160 50 . Average Speed 139 | 124 120 120 158 160 160 160 122 . Slowest Speed 240 | 200 120 120 160 160 160 160 240 . Overloaded Moves . | . . . . . . . . . Propulsion Burnouts . | . . . . . . . . . Robots Hopped . | . . . . . . . . . Potential Cave-ins . | . . . . . . . . . Cave-ins Triggered . | . . . . . . . . . Exploration Rate (%) 33 | 5 78 38 29 54 61 11 21 2 Regions Visited 8 Branch Regions 5 Pre-discovered Areas 1 | . . . . 1 . . . . Known Exits Taken 3 | . . . 1 . 1 1 . . Unknown Exits Taken 5 | 1 1 1 . 1 . . 1 . Scrap Searched . | . . . . . . . . . Spaces Dug . | . . . . . . . . . Terrain Destroyed 13 | . 13 . . . . . . . Melee . | . . . . . . . . . Projectile . | . . . . . . . . . AOE 13 | . 13 . . . . . . . Terrain Rammed . | . . . . . . . . . Walls Destroyed . | . . . . . . . . . Machines Disabled . | . . . . . . . . . Actions | -11 -10 -10 -9 -9 -9 -8 -8 -8 --------- Run | Yrd Mat Min Mat Min Exi Min Mat Sto Total 2268 | 125 680 121 503 262 240 22 313 2 Wait 239 | 2 87 2 88 . . . 60 . Move 1746 | 88 529 99 321 259 234 22 194 . Hop . | . . . . . . . . . Pick Up 32 | 4 4 3 17 . 3 . 1 . Fast Attach 11 | 7 3 . 1 . . . . . Attach 14 | . . 1 4 . 1 . 6 2 Detach 2 | . . . 2 . . . . . Swap 17 | 1 4 4 6 . . . 2 . Drop 33 | . 4 5 14 . 2 . 8 . Fire 154 | 23 45 7 45 . . . 34 . Melee . | . . . . . . . . . Ram 8 | . . . . . . . 8 . Kick 4 | . 4 . . . . . . . Crush 8 | . . . 5 3 . . . . Escape Stasis . | . . . . . . . . . Rewire . | . . . . . . . . . Trap . | . . . . . . . . . Miscellaneous . | . . . . . . . . . Route ------- -11/Scrapyard -10/Materials (discovered 4 exits: *Mat x2 / [*Min x2]) -10/Mines -9/Materials -9/Mines (discovered 3 exits: *Mat x2 / *Exi) -9/Exiles (discovered 2 exits: *Min x2) -8/Mines -8/Materials -8/Storage History --------- Turn | Location | Event 16 | -11/Scrapyard | Discovered new exit (range 16) 175 | -11/Scrapyard | Entered Materials 309 | -10/Materials | Build established: Mutant 401 | -10/Materials | Discovered new exit (range 16) 503 | -10/Materials | Discovered new exit (range 9) 688 | -10/Materials | Discovered new exit (range 16) 869 | -10/Materials | Build established: Scavenger-Mutant 874 | -10/Materials | Repaired Assault Rifle 1006 | -10/Materials | Discovered new exit (range 9) 1052 | -10/Materials | Entered Mines 1059 | -10/Mines | Received a Rocket Launcher from a helpful Derelict 1194 | -10/Mines | Discovered new exit (range 10) 1205 | -10/Mines | Entered Materials 1205 | -9/Materials | Evolved 2 slots: Utility x2 1761 | -9/Materials | Identified exit to Mines 1980 | -9/Materials | Entered Mines 2013 | -9/Mines | Met a Derelict bent on vengeance 2038 | -9/Mines | Discovered new exit (range 3) 2292 | -9/Mines | Received a Mining Laser from a helpful Derelict 2329 | -9/Mines | Discovered new exit (range 12) 2392 | -9/Mines | Deemed a non-threat by the Exiles lab entrance 2393 | -9/Mines | Discovered new exit (range 5) 2400 | -9/Mines | Entered Exiles 2400 | -9/Exiles | Accompanied by 1 ally 2421 | -9/Exiles | Discovered new exit (range 15) 2444 | -9/Exiles | Met 8R-AWN 2468 | -9/Exiles | Met EX-HEX 2514 | -9/Exiles | Met EX-BIN 2532 | -9/Exiles | Aligned with FarCom system 2533 | -9/Exiles | Given EX-Vault access code 2570 | -9/Exiles | Opened EX-Vault 2582 | -9/Exiles | Found Supersonic Drone Bay 2607 | -9/Exiles | Found Superbattery 2637 | -9/Exiles | Warned to stay clear of 0b10 Research branches 2682 | -9/Exiles | Met EX-DEC 2767 | -9/Exiles | Discovered new exit (range 10) 2778 | -9/Exiles | Identified exit to Mines 2780 | -9/Exiles | Left Exiles lab with Superbattery 2780 | -9/Exiles | Entered Mines 2806 | -8/Mines | Discovered new exit (range 6) 2814 | -8/Mines | Identified exit to Materials 2816 | -8/Mines | Entered Materials 2816 | -8/Materials | Evolved 2 slots: Propulsion x1, Utility x1 2883 | -8/Materials | Repaired Broken Imp. Ion Engine 3127 | -8/Materials | Lost 5 parts (1p1n2u1w) 3212 | -8/Materials | Core integrity fell below 50% 3224 | -8/Materials | Lost 4 parts (2n2w) 3237 | -8/Materials | Discovered new exit (range 6) 3240 | -8/Materials | Entered Storage 3242 | -8/Storage | Self-destructed Last Messages --------------- 03218_ Slammed into U-05 Engineer. 03218_ Destabilizing: System corrupted (+2). 03220_ Slammed into G-47 Trooper. 03220_ G-47 Trooper knocked back. 03220_ Critical hit (Burn: +37). 03221_ Slammed into G-47 Trooper. 03221_ Signal Interpreter broken. 03221_ Destabilizing: Short circuit. 03222_ Slammed into G-47 Trooper. 03223_ Slammed into W-25 Informer. 03225_ Slammed into A-02 Transporter. 03227_ Slammed into U-05 Engineer. 03237_ EXIT=FOUND 03239_ U-05 Engineer destroyed. LOCATION=UNKNOWN GOAL=ESCAPE 03240_ Receiving FarCom transmissions... 03240_ Identified Imp. Flight Unit. 03240_ Faulty integration damages Faulty Imp. Flight Unit (-23). Map ----- +----------------------------------------------------+ | | | | | | | | | | | | | | | | | | | | | | | | | | | ?????????????????????????????????? | | ?????????????????????????????????? | | ?????????????????????????????????? | | ?????????????????????????????????? | | ?????????????????????????????????? | | ?????????????????????????????????? | | ?????????????????????????????????? | | ?????????????????????????????????? | | ?????????????????????????????????? | | ?????????????????????????????????? | | ???????#####?????????????????????? | | ???????# #?????????????????????? | | ???????# @ #?????????????????????? | | ???????# #?????????????????????? | | ???????# #?????????????????????? | | ???????# #?????????????????????? | | ???????# +?????????????????????? | | ???????# #?????????????????????? | | ???????# #?????????????????????? | | ???????+ #?????????????????????? | | ???????# #?????????????????????? | | ???????# #?????????????????????? | | ???????# #?????????????????????? | | ???????# #?????????????????????? | | ???????# #?????????????????????? | | ???????? ??????????????????????? | | ???????? ??????????????????????? | | ???????? ??????????????????????? | | ?????????????????????????????????? | | ?????????????????????????????????? | | ?????????????????????????????????? | | ?????????????????????????????????? | | ?????????????????????????????????? | | ?????????????????????????????????? | | ?????????????????????????????????? | | ?????????????????????????????????? | | ?????????????????????????????????? | +----------------------------------------------------+ Best States ------------- Heat Dissipation 31 Energy Generation 14 Energy Capacity 265 Matter Stores 300 Matter Capacity 300 Sight Range 16 Terrain Scan Density 10 Armor Coverage 150 Evasion (%) 55 Recoil Reduction 3 Item Schematics ----------------- Lgt. Nuclear Core | -9/Materials | Scanalyzed Robot Schematics ------------------ None Fabricated ------------ Nothing Repaired ---------- Assault Rifle | 14% | -10/Materials Imp. Ion Engine | 38% | -8/Materials | Broken Studied --------- None Alien Tech Used ----------------- None Achievements -------------- None Challenges ------------ None Game ------ Seed DeepMiniShotgun Manual? 0 Play Time 00:27:49 Cumulative 27.2 hours Start 2026.01.27 @ 09:24:44 End 2026.01.27 @ 09:52:32 Sessions 1 Manual Loads 0 Difficulty Rogue Special Mode None Game No. 51 Rogue 51 Adventurer 0 Explorer 0 Win Type - Total 3 Types 3/0/0/0/0/0/0/0/0/0 Lore% 22 Gallery% 22 Achievement% 21 Wizard Run 0 Options --------- Layout 1 ASCII 0 Keyboard 1 Movement Vi Keybinds 0 Fullscreen 1 Font 32/SmallcapsGlow Map View 50x40 Zoom Use 0% Tactical HUD 1 Map Filters NONE Filters NONE Steam 1 RUN: 592868c5-3719-4f89-861b-cdd0cca4659d